[Event "93rd German Championship 2022"]
[Site "Magdeburg"]
[Date "2022.08.16"]
[Round "3.11"]
[White "Florstedt, Johannes"]
[Black "Kunin, Vitaly"]
[Result "1/2-1/2"]
[ECO "C41"]
[WhiteElo "2368"]
[BlackElo "2528"]
[Annotator "TA"]
[PlyCount "130"]
[EventDate "2022.08.14"]
[EventType "swiss"]
[EventCountry "GER"]
[SourceTitle "playchess.com"]
[Source "ChessBase"]
[SourceQuality "1"]
[TimeControl "40/5400+30:1800+30"]

{[%evp 9,130,2,41,41,41,41,32,45,23,24,46,36,67,75,89,63,68,69,90,92,93,82,76,84,83,63,101,77,127,94,99,91,83,10,37,0,0,0,0,0,0,0,0,0,0,0,0,0,-6,-6,-6,-6,0,0,48,0,28,29,48,0,0,-8,-9,-10,-10,-8,-8,-10,-10,-10,0,0,-7,-12,0,0,10,10,11,11,11,-9,0,-16,-13,-13,-14,-14,-14,-14,-14,-12,-12,-13,-8,-27,-27,-33,-36,-44,0,-8,-8,-8,0,0,0,0,0,0,0,0,0,0,0,0,0,0,0,0,0,0,0]} 1. e4 {[%emt 0:00:42]} d6 {[%emt 0:04:49]} 2. d4 {[%emt 0:00:03]} Nf6 {[%emt 0:00:54]} 3. Nc3 {[%emt 0:00:05]} e5 {[%emt 0:00:19]} 4. Nf3 {[%emt 0:00:05]} Nbd7 {[%emt 0:00:11]} 5. Rg1 {[%emt 0:00:06]} g6 {[%emt 0:04:50]} 6. Be3 {[%emt 0:04:10] C41: Philidor Defence.} Bg7 {[%emt 0:01:05]} 7. dxe5 {[%emt 0:00:08]} dxe5 {[%emt 0:00:52]} 8. g4 {[%emt 0:00:11][%cal Bg2g4,Bg4g5][%mdl 32] White is slightly better.} O-O {[%emt 0:00:50]} 9. Qd2 {[%emt 0:00:08]} Nb6 {[%emt 0:07:28] [#]} 10. g5 $146 {[%emt 0:06:00]} (10. Nxe5 {[#]} Nxe4 $1 11. Nxe4 Qxd2+ 12. Bxd2 Bxe5 $11) ({Predecessor:} 10. h3 Qxd2+ 11. Nxd2 Be6 12. a4 c6 13. a5 Nbd7 14. Bc4 Rfe8 15. Bxe6 Rxe6 16. Nb3 {1-0 (31) Fedoseev,V (2690)-Kadric,D (2469) Dubai 2021}) 10... Qxd2+ {[%emt 0:00:53]} 11. Nxd2 {[%emt 0:00:08][%cal Bf3d2,Bd2b3,Bb3c5][%mdl 32]} Nh5 {[%emt 0:05:01]} 12. Nb5 $36 {[%emt 0:02:56][%mdl 2048] White fights for an advantage.} Bd7 $1 {[%emt 0:00:11]} 13. a4 {[%emt 0:11:58]} Bxb5 {[%emt 0:09:31]} 14. axb5 {[%emt 0:01:06]} Nf4 {[%emt 0:00:53]} 15. Nb3 {[%emt 0:01:58]} Nc8 {[%emt 0:04:33]} 16. Nc5 {[%emt 0:07:43]} Nd6 {[%emt 0:00:34]} 17. f3 {[%emt 0:01:04]} (17. h4 {is more complex.} b6 18. Na6 Nxe4 19. Nxc7 Rad8 20. Rxa7 Rd7 21. Bxb6 Rfd8 22. Ra1) 17... Rfd8 {[%emt 0:01:05]} 18. c3 {[%emt 0:05:29]} Kf8 {[%emt 0:05:50]} (18... h6 $142) 19. Bxf4 {[%emt 0:13:26]} exf4 {[%emt 0:00:23]} 20. Rg4 {[%emt 0:00:06]} h6 {[%emt 0:04:07]} 21. Rxf4 {[%emt 0:06:02] White is more active.} ({White should try} 21. h4 $16) 21... hxg5 $11 {[%emt 0:01:02]} 22. Ne6+ {[%emt 0:01:16]} (22. Rg4 $5 {[%cal Rg4g5]}) 22... Ke7 $1 {[%emt 0:00:51]} 23. Nxg5 {[%emt 0:00:23]} Rh8 {[%emt 0:01:56]} 24. h4 {[%emt 0:01:44]} Be5 {[%emt 0:10:33]} 25. Rg4 {[%emt 0:00:13]} f5 {[%emt 0:04:58]} 26. exf5 {[%emt 0:00:53]} gxf5 {[%emt 0:00:08]} 27. Rga4 {[%emt 0:00:37]} Bg3+ {[%emt 0:04:56]} 28. Kd1 {[%emt 0:04:28]} Bxh4 {[%emt 0:05:45]} 29. Nh3 Bg3 {[%emt 0:01:25]} 30. Rxa7 {[%emt 0:03:42]} Rad8 {[%emt 0:00:33]} 31. Kc2 {[%emt 0:00:38]} f4 {[%emt 0:03:15]} (31... Rh5 $11) 32. R1a4 {[%emt 0:03:40]} (32. R7a4 $14 {deserves consideration.}) 32... Rh4 {[%emt 0:00:49]} (32... Bf2 $5) 33. Kb3 {[%emt 0:04:52]} Rg8 {[%emt 0:04:52]} 34. Rd4 {[%emt 0:10:48]} (34. R7a5 $14) 34... Rgh8 $1 {[%emt 0:00:59]} 35. Ng5 {[%emt 0:01:04] Ne4 is the strong threat.} Bf2 {[%emt 0:00:17]} 36. Rxd6 {[%emt 0:00:43] Strongly threatening Re6+.} Bxa7 {[%emt 0:00:24]} (36... cxd6 $2 37. Rxb7+ Kd8 38. b6 Bxb6 39. Nf7+ Kc8 40. Nxd6+ Kd8 41. Nf7+ Kc8 42. Nd6+ Kd8 43. Nf7+ Kc8 44. Rxb6 $18) 37. Re6+ {[%emt 0:00:48]} Kd7 {[%emt 0:00:19]} 38. Rg6 {[%emt 0:00:57]} Kc8 {[%emt 0:02:06]} 39. Bd3 {[%emt 0:02:34]} Kb8 {[%emt 0:00:47]} 40. Rg7 {[%emt 0:01:15]} Bb6 {[%emt 0:00:58]} 41. Rf7 {[%emt 0:33:28]} Rd8 {[%emt 0:34:39]} 42. Kc4 {[%emt 0:00:00]} Re8 {[%emt 0:00:00]} 43. Ne4 {[%emt 0:00:00]} Be3 {[%emt 0:00:00]} 44. Nf6 {[%emt 0:00:00]} Rd8 {[%emt 0:00:00]} 45. Nd5 {[%emt 0:00:00]} Rh5 {[%emt 0:00:00]} 46. Be4 {[%emt 0:00:00]} c6 {[%emt 0:00:00]} 47. bxc6 {[%emt 0:00:00]} b5+ {[%emt 0:00:00][%mdl 64] [#] Decoy} 48. Kxb5 {[%emt 0:00:00] Threatening mate with c7+.} Rdxd5+ {[%emt 0:00:00]} 49. Bxd5 {[%emt 0:00:00]} Rxd5+ {[%emt 0:00:00][%mdl 4096] Endgame KRB-KR} 50. Kb4 {[%emt 0:00:00]} Rd2 {[%emt 0:00:00]} 51. b3 {[%emt 0:00:00]} Rd5 {[%emt 0:00:00]} 52. Rh7 {[%emt 0:02:42]} Rc5 {[%emt 0:00:00]} 53. Rh6 {[%emt 0:00:13]} ({Reject} 53. Rb7+ Kc8 54. Rh7 Rxc6 $17) 53... Kc7 {[%emt 0:00:29]} 54. c4 {[%emt 0:02:24]} Rg5 {[%emt 0:01:08]} 55. Kc3 {[%emt 0:00:49] The position is equal.} Rg3 {[%emt 0:01:48]} 56. Kb4 {[%emt 0:01:45]} Kb6 {[%emt 0:00:48]} 57. Ka4 $1 {[%emt 0:00:25]} Rxf3 {[%emt 0:01:38]} 58. b4 {[%emt 0:00:04]} Rg3 {[%emt 0:02:41]} 59. c5+ {[%emt 0:00:03]} Kc7 {[%emt 0:00:10]} 60. Kb5 {[%emt 0:00:09] Hoping for Rh7+.} Rg7 {[%emt 0:04:31] Inhibits Rh7. aiming for ...Rf7.} 61. Rf6 {[%emt 0:00:13] Against Rf7} Bd2 {[%emt 0:00:13]} 62. Kc4 Rg4 {[%emt 0:01:25] ( -> ...f3+)} 63. Rf7+ {[%emt 0:00:38]} Kc8 {[%emt 0:00:17] White must now prevent ...f3+.} 64. Rf8+ {[%emt 0:00:33]} Kc7 {[%emt 0:00:06] Threatens to win with ...f3+.} 65. Rf7+ {[%emt 0:00:03]} Kc8 {[%emt 0:00:12] Weighted Error Value: White=0.07 (flawless) /Black=0.07 (flawless)} 1/2-1/2

[Event "93rd German Championship 2022"]
[Site "Magdeburg"]
[Date "2022.08.16"]
[Round "3.22"]
[White "Eichstaedt, Mirko"]
[Black "Farokhi, Keyvan"]
[Result "1-0"]
[ECO "E06"]
[WhiteElo "2223"]
[BlackElo "2332"]
[Annotator "TA"]
[PlyCount "89"]
[EventDate "2022.08.14"]
[EventType "swiss"]
[EventCountry "GER"]
[SourceTitle "playchess.com"]
[Source "ChessBase"]
[SourceQuality "1"]
[TimeControl "40/5400+30:1800+30"]

{[%evp 12,89,14,0,0,-18,-15,-10,-16,-17,22,4,26,7,0,0,40,24,46,52,45,36,66,36,22,19,31,11,13,8,5,0,14,-14,-8,-34,8,8,4,11,12,0,83,57,325,300,325,325,825,818,797,786,771,379,375,367,379,374,374,374,360,362,382,370,390,369,410,391,425,402,472,472,1146,934,1105,1102,29956,6444,5185,1611]} 1. d4 d5 2. Nf3 Nf6 3. c4 e6 4. g3 Be7 5. Bg2 O-O 6. Nc3 c6 7. Qb3 a5 {[%cal Oa5a4] E06: Closed Catalan: Early deviations.} 8. cxd5 exd5 9. O-O Nbd7 {[%cal Bb8d7,Bd7f8,Bf8e6,Be6c7,Bc7d5,Bd5b4][%mdl 32] The position is equal.} 10. Bf4 {[#]} b5 $146 ({Predecessor:} 10... Re8 11. Rac1 Nf8 12. Ne5 Ne6 13. Be3 h5 14. Nf3 Ng4 15. Bd2 h4 16. Rfe1 hxg3 17. hxg3 {0-1 (61) Rice,P (2187)-Dixon,D (2311) ICCF email 2015}) 11. Qc2 Ba6 12. Rfe1 Re8 13. a3 Nf8 14. Ne5 Rc8 15. e4 Ne6 16. Be3 Bd6 17. Nxc6 {White is more active.} Rxc6 18. exd5 Rxc3 19. bxc3 {[%cal Bb2c3,Bc3c4][%mdl 32]} Nc7 20. a4 Ncxd5 21. axb5 Bxb5 22. c4 Nb4 23. Qb3 Ba6 24. Bd2 Rxe1+ 25. Bxe1 {[#] Threatens to win with c5.} Bf8 26. Bc3 Bc8 (26... h5 $11 {keeps the balance.}) 27. Qa4 $16 Qc7 {[%mdl 8192] This costs Black the game.} (27... Qe7 $14) 28. Qxa5 $18 ({Less strong is} 28. c5 Nbd5 29. Bxa5 Qb8 $16) 28... Qxc4 29. Bxb4 Bxb4 (29... Qxb4 30. Qxb4 Bxb4) 30. Qd8+ Bf8 31. Ra8 Ng4 32. Qxc8 (32. Rxc8 $142 {[%csl Gc8][%cal Rd8f8]} Qb4 33. Bf1) 32... Qxc8 33. Rxc8 {[%mdl 4096] Endgame KRB-KBN} g6 34. Bd5 Nf6 35. Bc6 Kg7 36. f3 Ng8 37. Rc7 Bb4 38. Kf2 Ne7 39. Ke3 Kf6 40. Be4 Ke6 41. Rb7 Bd6 (41... Ba5 $142 42. Ra7 Bd8) 42. d5+ Kf6 43. Rb6 Nf5+ 44. Bxf5 Ke5 {[#]} 45. Rxd6 $1 {Weighted Error Value: White=0.16 (very precise) /Black=0.59} 1-0

[Event "93rd German Championship 2022"]
[Site "Magdeburg"]
[Date "2022.08.16"]
[Round "4.1"]
[White "Carlstedt, Jonathan"]
[Black "Schulz, Lukas"]
[Result "1/2-1/2"]
[ECO "E77"]
[WhiteElo "2439"]
[BlackElo "2271"]
[Annotator "TA"]
[PlyCount "80"]
[EventDate "2022.08.14"]
[EventType "swiss"]
[EventCountry "GER"]
[SourceTitle "playchess.com"]
[Source "ChessBase"]
[SourceQuality "1"]
[TimeControl "40/5400+30:1800+30"]

{[%evp 14,80,0,-7,67,50,81,100,82,60,62,54,110,49,70,71,76,72,77,78,77,76,158,119,141,84,66,85,64,55,76,70,50,45,77,57,116,0,3,12,288,214,622,0,0,0,0,0,0,-19,-22,-20,-23,-33,0,-10,0,0,0,0,0,0,0,-4,0,0,0,-6,0]} 1. d4 {[%emt 0:00:21]} Nf6 {[%emt 0:00:08]} 2. c4 {[%emt 0:00:07]} g6 {[%emt 0:00:05]} 3. Nc3 {[%emt 0:00:09]} Bg7 {[%emt 0:00:08]} 4. e4 {[%emt 0:00:06]} d6 {[%emt 0:00:09]} 5. f4 {[%emt 0:00:08]} O-O {[%emt 0:03:23]} 6. Nf3 {[%emt 0:01:35]} c5 {[%emt 0:05:50]} 7. d5 {[%emt 0:00:35]} e6 {[%emt 0:04:09]} 8. Be2 {[%emt 0:00:06]} b5 {[%emt 0:10:48] E77: King's Indian: Four Pawns Attack: 6 Be2 incl 6...c5 7 d5 e6 8 Nf3, but not Benoni.} (8... exd5 $11 9. exd5 (9. cxd5 Re8 $11) 9... Na6) 9. dxe6 $14 (9. Nxb5 Nxe4 10. Qd3 f5 $15) 9... Bxe6 {[%emt 0:03:48]} 10. cxb5 {[%emt 0:16:24]} a6 {[%emt 0:00:34] White is better.} 11. bxa6 {[%emt 0:07:16]} Nxa6 {[%emt 0:05:11]} 12. O-O {[%emt 0:00:36] [#]} Qb6 $146 {[%emt 0:06:58]} ({Better is} 12... Nb4 $14) ({Predecessor:} 12... Nb4 13. Ng5 Bxa2 14. Nxa2 Nxa2 15. Bf3 Ra7 16. Be3 Qe7 17. Qb3 h6 18. Nh3 Nb4 19. Rxa7 Qxa7 20. Qxb4 {1-0 (28) Galvanek,L (2139)-Kostelny,J (2220) Slovakia 2009}) 13. Kh1 {[%emt 0:01:46]} (13. Ng5 $16) 13... Nb4 {[%emt 0:07:00][%cal Rb4a2]} 14. a3 {[%emt 0:03:03][%cal Of4f5]} Nc6 {[%emt 0:02:57]} 15. f5 $1 {[%emt 0:03:54]} ({Don't blunder} 15. Qxd6 $2 Rfd8 16. Qxd8+ Rxd8 $19) 15... Bb3 {[%emt 0:16:48]} 16. Qxd6 {[%emt 0:06:26]} Rad8 {[%emt 0:02:09]} 17. Qf4 {[%emt 0:09:21]} (17. Qg3 $5 {[%cal Re4e5]}) 17... Rfe8 {[%emt 0:02:25]} (17... Nd4 $142) 18. fxg6 {[%emt 0:04:32]} hxg6 {[%emt 0:01:01]} 19. a4 {[%emt 0:15:21]} (19. Bb5 $142) 19... Nd4 $16 {[%emt 0:06:26]} 20. Bb5 {[%emt 0:00:25]} Nxb5 {[%emt 0:06:12]} 21. axb5 {[%emt 0:00:14] Black must now prevent Ra6.} Bc4 {[%emt 0:00:21][%csl LRb5,LRf1] aiming for ...Nh5. This bishop pair is nice.} 22. Re1 $1 {[%emt 0:01:04] Hoping for Ra6.} Bxb5 {[%emt 0:01:41]} 23. Qh4 {[%emt 0:01:32] Threatens to win with Bg5.} Rd7 {[%emt 0:07:39]} 24. Bg5 {[%emt 0:02:28]} Bd3 {[%emt 0:01:23]} (24... Nh7 $1 $14) 25. Nd5 {[%emt 0:02:20]} (25. Na4 $16 Qc6 26. Nxc5 $1 {[%mdl 512]} Qxc5 27. Bxf6) 25... Nxd5 $11 {[%emt 0:02:03]} 26. exd5 {[%emt 0:00:02]} Rxe1+ {[%emt 0:00:22][%mdl 8192]} (26... Rc8 $1 $11) 27. Rxe1 $18 {[%emt 0:00:33] White wants to mate with Re8+. Chess con chili.} ({Stronger than} 27. Nxe1 Ba6 $11) 27... f6 $2 {[%emt 0:00:23]} (27... Qb8) 28. Bc1 $2 {[%emt 0:08:43]} (28. Re8+ $18 Kf7 29. Re6 (29. Qe1 Qd6 $11) 29... Qxb2 {[#]} 30. Bxf6 $1 {[%mdl 512]} Bxf6 31. Qh7+ Bg7 32. Ne5+ Qxe5 33. Rxe5) 28... Rxd5 $11 {[%emt 0:01:34]} 29. h3 {[%emt 0:05:45]} Qc6 {[%emt 0:01:14]} 30. Qg3 {[%emt 0:00:46]} Rd8 {[%emt 0:02:02]} 31. Qh4 {[%emt 0:02:17]} (31. Kg1 {keeps more tension.} c4 32. Qh4 g5 33. Qh5) 31... Re8 {[%emt 0:00:22]} 32. Rxe8+ {[%emt 0:04:06]} Qxe8 {[%emt 0:00:04]} 33. Qf2 {[%emt 0:00:10]} c4 {[%emt 0:00:29]} 34. Be3 {[%emt 0:00:18] The position is equal.} Be4 {[%emt 0:00:41]} 35. Bd4 {[%emt 0:01:00]} Bd5 {[%emt 0:00:09]} 36. Nd2 {[%emt 0:01:45]} Qe6 {[%emt 0:00:10]} 37. Kg1 {[%emt 0:00:14]} Kf7 {[%emt 0:01:28]} 38. Nf3 {[%emt 0:01:19] Ng5+ is the strong threat.} Kg8 {[%emt 0:00:05]} 39. Nd2 {[%emt 0:00:17]} Kf7 {[%emt 0:00:29]} 40. Nf3 {[%emt 0:00:11] And now Ng5+ would win.} Kg8 {[%emt 0:00:40] Weighted Error Value: White=0.31/Black=0.37} 1/2-1/2

[Event "93rd German Championship 2022"]
[Site "Magdeburg"]
[Date "2022.08.16"]
[Round "4.2"]
[White "Langheinrich, Ferenc"]
[Black "Krassowizkij, Jaroslaw"]
[Result "1/2-1/2"]
[ECO "C44"]
[WhiteElo "2357"]
[BlackElo "2429"]
[Annotator "TA"]
[PlyCount "94"]
[EventDate "2022.08.14"]
[EventType "swiss"]
[EventCountry "GER"]
[SourceTitle "playchess.com"]
[Source "ChessBase"]
[SourceQuality "1"]
[TimeControl "40/5400+30:1800+30"]

{[%evp 13,94,0,0,0,0,-27,-17,-50,-52,-61,-53,-40,0,-10,-7,-28,-4,-10,0,-46,0,0,0,-99,0,0,10,0,13,8,4,0,10,0,0,0,0,0,0,0,0,0,0,0,0,0,0,0,0,0,0,-8,0,-31,0,0,0,0,0,0,0,0,0,0,0,-8,-8,-8,-8,-8,-8,-48,-48,-144,-8,-8,-8,-8,0,0,0,-8,0]} 1. e4 {[%emt 0:00:30]} e5 {[%emt 0:00:30]} 2. Nf3 {[%emt 0:01:17]} Nc6 {[%emt 0:00:00]} 3. g3 {[%emt 0:00:44]} Nf6 {[%emt 0:00:29][%cal Bg8f6,Bf6d5,Bd5b4][%mdl 32]} 4. d3 {[%emt 0:00:18]} Bc5 {[%emt 0:03:16]} 5. Bg2 {[%emt 0:01:11]} d5 {[%emt 0:02:27]} 6. exd5 {[%emt 0:02:28]} Nxd5 {[%emt 0:00:30]} 7. O-O {[%emt 0:00:27]} O-O {[%emt 0:00:07]} 8. Nbd2 {[%emt 0:08:05] C44: Ponziani Opening and Scotch Gambit.} Re8 {[%emt 0:20:49] [#]} 9. Nb3 $146 {[%emt 0:19:42]} ({Predecessor:} 9. Re1 f6 10. c3 Be6 11. Qc2 Bb6 12. Ne4 Qd7 13. Bd2 Bh3 14. Rad1 Bxg2 15. Kxg2 {1-0 (35) Praggnanandhaa,R (2608)-Maghsoodloo,P (2698) Chess.com INT 2021}) 9... Bf8 {[%emt 0:02:50]} 10. Nfd2 {[%emt 0:05:37]} a5 {[%emt 0:02:16]} 11. a4 {[%emt 0:00:55]} Ndb4 {[%emt 0:19:10]} 12. Ne4 {[%emt 0:07:56]} Nd4 {[%emt 0:03:42]} 13. Nxd4 {[%emt 0:02:50]} exd4 {[%emt 0:00:06]} 14. Nd2 {[%emt 0:10:20]} c6 {[%emt 0:15:28]} 15. Nc4 {[%emt 0:01:18]} Be6 {[%emt 0:00:28]} 16. h4 {[%emt 0:06:22]} (16. Re1 $11 {feels stronger.}) 16... Bd5 {[%emt 0:02:47]} (16... Bxc4 $15 {might be stronger.} 17. dxc4 d3) 17. Bxd5 $11 {[%emt 0:02:47]} Nxd5 {[%emt 0:03:41]} 18. Bd2 {[%emt 0:03:46] [#]} (18. Re1 $11) 18... Bb4 {[%emt 0:01:54]} (18... b5 $1 $17 {[%cal Rb5c4]} 19. axb5 cxb5) 19. Bxb4 {[%emt 0:01:30]} Nxb4 {[%emt 0:02:42]} 20. Qd2 {[%emt 0:01:32]} Qc7 {[%emt 0:00:40]} 21. Rfe1 {[%emt 0:01:16]} h6 {[%emt 0:04:18]} 22. h5 {[%emt 0:01:35]} Kf8 {[%emt 0:02:08]} 23. Rxe8+ {[%emt 0:07:02]} Rxe8 {[%emt 0:00:09]} 24. Re1 {[%emt 0:00:35]} Rxe1+ {[%emt 0:07:37]} 25. Qxe1 {[%emt 0:00:05]} Nxc2 {[%emt 0:00:07]} 26. Qxa5 {[%emt 0:00:33]} Qxa5 {[%emt 0:00:15]} 27. Nxa5 {[%emt 0:00:06][%mdl 4096] Endgame KN-KN} b5 {[%emt 0:00:17]} 28. Nxc6 {[%emt 0:06:01]} bxa4 {[%emt 0:00:01]} 29. Kf1 {[%emt 0:00:14]} Ke8 $1 {[%emt 0:00:57]} 30. Ke2 {[%emt 0:01:40] Kd2 is the strong threat.} Kd7 {[%emt 0:00:22]} 31. Ne5+ {[%emt 0:01:21]} Ke6 {[%emt 0:01:10]} 32. Nc6 {[%emt 0:00:58]} Kd5 {[%emt 0:01:51]} 33. Na5 {[%emt 0:01:43]} a3 {[%emt 0:00:26]} 34. bxa3 {[%emt 0:00:11]} Nxa3 {[%emt 0:00:03]} 35. Nb3 {[%emt 0:01:11]} Nc2 {[%emt 0:01:33]} 36. Kd2 {[%emt 0:01:45]} Nb4 {[%emt 0:00:05]} 37. Ke2 {[%emt 0:01:16]} Nc6 {[%emt 0:00:22]} 38. Nd2 {[%emt 0:00:54]} Ne5 {[%emt 0:00:50]} 39. f4 {[%emt 0:00:37]} Ng4 {[%emt 0:00:38]} 40. Nf3 {[%emt 0:00:41]} Nf6 {[%emt 0:00:41]} 41. Ne5 {[%emt 0:02:35]} Nxh5 {[%emt 0:00:25]} 42. Kf3 {[%emt 0:00:16]} f5 {[%emt 0:03:54]} 43. g4 {[%emt 0:05:56] [#]} (43. Ng6 $1 $15) 43... fxg4+ {[%emt 0:01:26]} (43... Nf6 $1 $17 44. gxf5 Kc5) 44. Kxg4 {[%emt 0:00:06] The position is equal.} Nf6+ {[%emt 0:00:26]} 45. Kf5 {[%emt 0:00:11]} Nh5 {[%emt 0:04:02]} 46. Kg4 $1 {[%emt 0:00:22]} Nf6+ {[%emt 0:00:14]} 47. Kf5 {[%emt 0:00:06]} Nh5 {Weighted Error Value: White=0.13 (very precise) /Black=0.16 (very precise)} 1/2-1/2

[Event "93rd German Championship 2022"]
[Site "Magdeburg"]
[Date "2022.08.16"]
[Round "4.3"]
[White "Krastev, Alexander"]
[Black "Roseneck, Jonas"]
[Result "1-0"]
[ECO "C25"]
[WhiteElo "2428"]
[BlackElo "2384"]
[Annotator "TA"]
[PlyCount "123"]
[EventDate "2022.08.14"]
[EventType "swiss"]
[EventCountry "GER"]
[SourceTitle "playchess.com"]
[Source "ChessBase"]
[SourceQuality "1"]
[TimeControl "40/5400+30:1800+30"]

{[%evp 10,123,0,0,9,-3,56,54,52,39,39,42,66,0,26,30,26,22,24,1,80,60,111,56,112,110,100,109,112,89,82,83,83,70,133,68,79,77,63,63,119,99,137,110,104,111,109,106,106,110,119,118,129,90,99,89,67,81,80,91,182,192,265,304,366,339,337,319,372,355,378,348,522,368,353,344,359,322,871,510,591,417,410,404,606,608,553,608,599,599,548,582,588,584,643,631,633,613,620,612,621,585,771,765,779,767,800,734,727,723,756,768,767,749,5043,4810]} 1. e4 {[%emt 0:11:11]} e5 {[%emt 0:00:02]} 2. Nc3 {[%emt 0:05:38]} Nc6 {[%emt 0:00:08]} 3. g3 {[%emt 0:01:58]} Bc5 {[%emt 0:02:45]} 4. Bg2 {[%emt 0:00:13]} Nf6 {[%emt 0:01:55]} 5. Nge2 {[%emt 0:02:39]} d6 {[%emt 0:02:05]} 6. Na4 {[%emt 0:08:51]} h5 {[%emt 0:04:44] C26: Vienna Game: 2...Nf6, sidelines .} 7. h3 {[%emt 0:02:30]} a6 {[%emt 0:10:37]} (7... h4 $11) 8. Nxc5 $14 {[%emt 0:01:20]} dxc5 {[%emt 0:00:02] White is slightly better.} 9. d3 {[%emt 0:01:00]} Be6 {[%emt 0:02:54]} 10. Be3 {[%emt 0:02:58] [#]} Qd6 $146 {[%emt 0:03:22]} ({Predecessor:} 10... c4 11. d4 exd4 12. Nxd4 Nxd4 13. Qxd4 Qxd4 14. Bxd4 O-O-O 15. O-O-O Bd7 16. e5 Ng8 {1-0 (59) Blit,J (2331)-Vignesh,N (2428) Chess.com INT 2020}) 11. O-O {[%emt 0:01:31]} (11. f4 $14) 11... h4 {[%emt 0:05:26]} (11... Qd7 $5 {[%cal Re6h3]}) 12. g4 {[%emt 0:02:34]} Nd7 {[%emt 0:00:32]} 13. c3 {[%emt 0:16:16]} O-O-O $1 {[%emt 0:03:57]} 14. Qc2 {[%emt 0:01:08]} f6 {[%emt 0:20:42]} (14... g6 $11) 15. Rad1 {[%emt 0:02:07]} Nb6 {[%emt 0:03:57]} (15... g5 $14) 16. a3 {[%emt 0:06:19]} (16. b3 $16) 16... Qe7 {[%emt 0:05:15]} (16... Na5 $14) 17. b4 $1 $16 {[%emt 0:01:21]} cxb4 {[%emt 0:04:42]} 18. axb4 {[%emt 0:00:10]} Kb8 {[%emt 0:02:09]} 19. Rb1 {[%emt 0:01:25]} Rd7 {[%emt 0:03:01]} 20. b5 {[%emt 0:05:04]} axb5 {[%emt 0:00:08]} 21. Rxb5 {[%emt 0:00:06] Threatens to win with c4.} Rhd8 {[%emt 0:00:24]} ({Better is} 21... Qd6 $1 $14) 22. Nc1 {[%emt 0:03:36]} (22. Bxb6 $16 cxb6 23. Rxb6) 22... Qa3 $14 {[%emt 0:06:02]} 23. Bxb6 {[%emt 0:01:07]} cxb6 {[%emt 0:00:01]} 24. Rxb6 {[%emt 0:00:07]} Rc7 {[%emt 0:06:43] [#]} (24... Rd6 $14) 25. Ne2 $1 $16 {[%emt 0:02:59]} Bc8 {[%emt 0:04:52][%cal Oc6b4]} 26. Rfb1 {[%emt 0:01:51] Inhibits Nb4.} Nd4 {[%emt 0:00:02]} 27. Nxd4 {[%emt 0:00:55]} Rxd4 {[%emt 0:00:01]} 28. R6b3 {[%emt 0:01:03]} Qa5 29. c4 {[%emt 0:03:23]} Rd6 {[%emt 0:07:11]} 30. Qb2 {[%emt 0:01:49]} Ra6 {[%emt 0:01:17]} 31. Bf1 {[%emt 0:00:14]} Qc5 {[%emt 0:00:14]} 32. Ra1 {[%emt 0:01:14]} Rxa1 {[%emt 0:00:10]} 33. Qxa1 {[%emt 0:00:01]} Rc6 {[%emt 0:00:17]} 34. Rb5 {[%emt 0:00:42][%cal Bb3b5,Bb5d5,Bd5d8][%mdl 32]} Qa7 {[%emt 0:01:18]} (34... Qd6 $16) 35. Qb2 $18 {[%emt 0:00:14]} Kc7 {[%emt 0:00:33] [#]} (35... Qa4 $142 36. d4 exd4) 36. Qb4 $1 {[%emt 0:00:25]} g5 {[%emt 0:00:23]} 37. Qe7+ {[%emt 0:09:30]} Kb8 {[%emt 0:00:01]} 38. Rd5 {[%emt 0:00:06]} Qb6 {[%emt 0:00:49]} 39. Kg2 {[%emt 0:01:26]} Qc7 {[%emt 0:00:41]} 40. Qf8 {[%emt 0:00:17]} Ka7 {[%emt 0:00:35]} (40... Qb6 {keeps fighting.} 41. Be2 Qa7) 41. Rd8 {[%emt 0:33:10]} Kb8 {[%emt 0:06:19]} 42. Be2 {[%emt 0:00:00][%cal Bf1e2,Be2d1,Bd1b3][%mdl 32]} Qa5 {[%emt 0:09:20]} 43. Bd1 {[%emt 0:00:00]} Qa2 $2 {[%emt 0:02:01]} (43... Qc5 44. Qxc5 Rxc5) 44. Qb4 {[%emt 0:00:00]} Ra6 {[%emt 0:02:41]} 45. Qc5 {[%emt 0:00:00][%csl Gc5][%cal Rd8c8]} Rc6 {[%emt 0:00:12]} 46. Qf8 {[%emt 0:00:00] Qe8 is the strong threat.} Qa1 {[%emt 0:01:33]} (46... Qa5 $142 47. Bb3 Qc5 48. Qxc5 Rxc5) 47. Bb3 {[%emt 0:00:00] White is clearly winning.} Qa5 {[%emt 0:00:02]} 48. Qe8 {[%emt 0:00:00]} Qc7 {[%emt 0:03:26]} 49. c5 {[%emt 0:00:00] Against Rb6} Ka7 {[%emt 0:01:17]} 50. Qf8 {[%emt 0:00:00]} Rxc5 {[%emt 0:01:53]} 51. Qxf6 {[%emt 0:00:00]} Rc6 {[%emt 0:01:55]} 52. Qxg5 {[%emt 0:00:00]} Qb6 {[%emt 0:00:01]} 53. Bc4 {[%emt 0:01:39]} Rf6 {[%emt 0:02:28]} 54. Qe3 {[%emt 0:00:06]} (54. Rxc8 $2 {leads to mate.} Qxf2+ 55. Kh1 Qe1+ 56. Kh2 Rf2#) 54... Qxe3 {[%emt 0:00:24]} 55. fxe3 {[%emt 0:00:01][%mdl 4096] Endgame KRB-KRB} Kb8 {[%emt 0:00:48]} 56. Rh8 {[%emt 0:02:16]} Kc7 {[%emt 0:00:25]} 57. Rxh4 {[%emt 0:00:06]} Bd7 {[%emt 0:00:38]} 58. Rh5 {[%emt 0:01:57]} b5 {[%emt 0:00:02]} 59. Bd5 {[%emt 0:00:39]} Ra6 {[%emt 0:01:00]} 60. Rxe5 {[%emt 0:00:26]} Ra3 {[%emt 0:00:01]} 61. g5 {[%emt 0:01:06][%cal Bg4g5,Bg5g6][%mdl 32] And now g6 would win.} Rxd3 {[%emt 0:00:19]} 62. g6 {[%emt 0:00:17] Weighted Error Value: White=0.23 (precise) /Black=0.30} 1-0